[Event "*** Biggest EVER Titled Tuesday"]
[Site "Chess.com"]
[Date "2018.04.17"]
[Round "8"]
[White "dretch"]
[Black "Annawel"]
[Result "0-1"]
[WhiteElo "2688"]
[BlackElo "2870"]
[TimeControl "180+2"]
[EndTime "14:53:09 PDT"]
[Termination "Annawel won on time"]

1. d4 {[%clk 0:03:01.9]} 1... Nf6 {[%clk 0:03:00.6]} 2. c4 {[%clk 0:03:02.8]}
2... d6 {[%clk 0:03:02.2]} 3. Nf3 {[%clk 0:03:03.7]} 3... Nbd7 {[%clk
0:03:03.4]} 4. Nc3 {[%clk 0:03:05]} 4... e5 {[%clk 0:03:04.4]} 5. e4 {[%clk
0:03:06]} 5... Be7 {[%clk 0:03:03.6]} 6. Be2 {[%clk 0:03:06.5]} 6... O-O {[%clk
0:03:04.8]} 7. O-O {[%clk 0:03:07.4]} 7... c6 {[%clk 0:03:05.1]} 8. Qc2 {[%clk
0:03:08.3]} 8... a6 {[%clk 0:03:03.4]} 9. Rd1 {[%clk 0:03:08.7]} 9... Qc7 {[%clk
0:03:04.2]} 10. Rb1 {[%clk 0:03:09.7]} 10... Re8 {[%clk 0:03:04]} 11. b4 {[%clk
0:03:09.7]} 11... Bf8 {[%clk 0:02:48]} 12. Be3 {[%clk 0:02:46.1]} 12... exd4
{[%clk 0:02:39.7]} 13. Nxd4 {[%clk 0:02:43.7]} 13... c5 {[%clk 0:02:38.5]} 14.
Nd5 {[%clk 0:02:21.8]} 14... Qb8 {[%clk 0:02:17.5]} 15. bxc5 {[%clk 0:02:19.7]}
15... dxc5 {[%clk 0:01:53]} 16. Nc6 {[%clk 0:01:44.9]} 16... Qd6 {[%clk
0:01:53.9]} 17. Nde7+ {[%clk 0:01:43.4]} 17... Bxe7 {[%clk 0:01:55.1]} 18. Rxd6
{[%clk 0:01:43.4]} 18... Bxd6 {[%clk 0:01:57]} 19. e5 {[%clk 0:01:23.3]} 19...
Nxe5 {[%clk 0:01:52.7]} 20. Nxe5 {[%clk 0:01:24.1]} 20... Rxe5 {[%clk
0:01:54.3]} 21. Bf4 {[%clk 0:01:17.3]} 21... Rxe2 {[%clk 0:01:46.6]} 22. Qxe2
{[%clk 0:01:10.4]} 22... Bxf4 {[%clk 0:01:47.9]} 23. g3 {[%clk 0:00:38.7]} 23...
Bd6 {[%clk 0:01:29]} 24. Qd3 {[%clk 0:00:15.3]} 24... Be7 {[%clk 0:01:20.9]} 25.
Qe3 {[%clk 0:00:12.2]} 25... Kf8 {[%clk 0:01:20.1]} 26. Qe5 {[%clk 0:00:11.4]}
26... Ne8 {[%clk 0:01:04.9]} 27. h4 {[%clk 0:00:05.9]} 27... Bd6 {[%clk
0:01:05.7]} 28. Qd5 {[%clk 0:00:05.6]} 28... Rb8 {[%clk 0:01:04.5]} 29. Qd3
{[%clk 0:00:05.5]} 29... g6 {[%clk 0:01:03]} 30. Qc3 {[%clk 0:00:05]} 30... f6
{[%clk 0:01:03.1]} 31. Qd2 {[%clk 0:00:04.9]} 31... Be6 {[%clk 0:01:01.2]} 32.
h5 {[%clk 0:00:05.8]} 32... g5 {[%clk 0:00:59.6]} 33. Qd3 {[%clk 0:00:06.4]}
33... Kg7 {[%clk 0:00:54.6]} 34. Re1 {[%clk 0:00:07.2]} 34... Bf7 {[%clk
0:00:55.8]} 35. Rxe8 {[%clk 0:00:07.6]} 35... Rxe8 {[%clk 0:00:57.7]} 36. Qxd6
{[%clk 0:00:08.3]} 36... Bxh5 {[%clk 0:00:48.3]} 37. Qc7+ {[%clk 0:00:08.2]}
37... Bf7 {[%clk 0:00:21.4]} 38. Qxb7 {[%clk 0:00:07.1]} 38... a5 {[%clk
0:00:17.6]} 39. Qc7 {[%clk 0:00:05.9]} 39... Re5 {[%clk 0:00:18.4]} 40. a4
{[%clk 0:00:05.9]} 40... g4 {[%clk 0:00:13.6]} 41. Qd7 {[%clk 0:00:03.3]} 41...
h5 {[%clk 0:00:13.8]} 42. Qb5 {[%clk 0:00:03.1]} 42... Kg6 {[%clk 0:00:13.6]}
43. Qxa5 {[%clk 0:00:02.7]} 43... Bxc4 {[%clk 0:00:14.6]} 44. Qc3 {[%clk
0:00:03.7]} 44... Bd5 {[%clk 0:00:12.3]} 45. Qc2+ {[%clk 0:00:02.9]} 45... Be4
{[%clk 0:00:12.9]} 46. Qc3 {[%clk 0:00:02.5]} 46... Bf3 {[%clk 0:00:14.3]} 47.
Kh2 {[%clk 0:00:02.1]} 47... Rd5 {[%clk 0:00:15.2]} 48. Qc2+ {[%clk 0:00:02.1]}
48... Kg7 {[%clk 0:00:16.3]} 49. Qb1 {[%clk 0:00:02.1]} 49... Rd1 {[%clk
0:00:17.1]} 0-1

[Event "*** Biggest EVER Titled Tuesday"]
[Site "Chess.com"]
[Date "2018.04.17"]
[Round "8"]
[White "Ginger_GM"]
[Black "Cecile-Haussernot"]
[Result "0-1"]
[WhiteElo "2436"]
[BlackElo "2336"]
[TimeControl "180+2"]
[EndTime "14:53:14 PDT"]
[Termination "Cecile-Haussernot won by resignation"]

1. d4 {[%clk 0:03:01.9]} 1... d5 {[%clk 0:02:58.7]} 2. c4 {[%clk 0:02:58.6]}
2... c6 {[%clk 0:02:59.7]} 3. Nc3 {[%clk 0:02:59.1]} 3... Nf6 {[%clk 0:03:00.8]}
4. Nf3 {[%clk 0:02:59.2]} 4... dxc4 {[%clk 0:03:02]} 5. e4 {[%clk 0:02:59.7]}
5... b5 {[%clk 0:03:02.3]} 6. e5 {[%clk 0:02:58.8]} 6... Nd5 {[%clk 0:02:54]} 7.
a4 {[%clk 0:02:58.8]} 7... h6 {[%clk 0:02:50.8]} 8. axb5 {[%clk 0:02:56.1]} 8...
Nxc3 {[%clk 0:02:51]} 9. bxc3 {[%clk 0:02:56.8]} 9... cxb5 {[%clk 0:02:52.6]}
10. Ba3 {[%clk 0:02:57.5]} 10... Be6 {[%clk 0:02:53]} 11. Be2 {[%clk 0:02:48.3]}
11... Bd5 {[%clk 0:02:52.8]} 12. Nd2 {[%clk 0:02:45.9]} 12... Nc6 {[%clk
0:02:52.3]} 13. O-O {[%clk 0:02:23.5]} 13... e6 {[%clk 0:02:50.7]} 14. Bxf8
{[%clk 0:02:22.3]} 14... Kxf8 {[%clk 0:02:51.2]} 15. f4 {[%clk 0:02:23.7]} 15...
a5 {[%clk 0:02:40.6]} 16. f5 {[%clk 0:02:23.5]} 16... Kg8 {[%clk 0:02:34.9]} 17.
f6 {[%clk 0:02:21.2]} 17... g6 {[%clk 0:02:33.6]} 18. Rf4 {[%clk 0:02:03.2]}
18... Qb6 {[%clk 0:02:27.1]} 19. Kh1 {[%clk 0:01:25.3]} 19... a4 {[%clk
0:02:18.2]} 20. Ne4 {[%clk 0:01:16.9]} 20... a3 {[%clk 0:02:08.6]} 21. Nd6
{[%clk 0:01:08.2]} 21... b4 {[%clk 0:02:01.8]} 22. Bh5 {[%clk 0:01:08.3]} 22...
gxh5 {[%clk 0:01:33.3]} 23. Qxh5 {[%clk 0:01:07.1]} 23... Rh7 {[%clk 0:01:28.5]}
24. Rg4+ {[%clk 0:01:00.2]} 24... Kf8 {[%clk 0:01:24.2]} 25. Rg7 {[%clk
0:01:00.8]} 25... Rxg7 {[%clk 0:01:09.4]} 26. fxg7+ {[%clk 0:01:01]} 26... Kxg7
{[%clk 0:01:11.3]} 27. Qxf7+ {[%clk 0:01:01.4]} 27... Kh8 {[%clk 0:01:11.4]} 28.
Qf6+ {[%clk 0:00:54.3]} 28... Kh7 {[%clk 0:01:07.7]} 29. Qf7+ {[%clk 0:00:51.1]}
29... Kh8 {[%clk 0:01:07.3]} 30. Rf1 {[%clk 0:00:49.4]} 30... Rg8 {[%clk
0:01:01.8]} 31. Rf6 {[%clk 0:00:38.9]} 31... Bxg2+ {[%clk 0:00:53.9]} 32. Kg1
{[%clk 0:00:40.1]} 32... Be4+ {[%clk 0:00:41.3]} 33. Kf2 {[%clk 0:00:37.3]}
33... Bg6 {[%clk 0:00:12.4]} 34. Rxg6 {[%clk 0:00:28.1]} 34... Rxg6 {[%clk
0:00:12.3]} 35. Qxg6 {[%clk 0:00:29.3]} 35... Nxe5 {[%clk 0:00:08.1]} 36. Qf6+
{[%clk 0:00:28.6]} 36... Kh7 {[%clk 0:00:08.8]} 37. Qe7+ {[%clk 0:00:19.3]}
37... Kh8 {[%clk 0:00:06.4]} 38. Qf6+ {[%clk 0:00:18.7]} 38... Kh7 {[%clk
0:00:06.9]} 39. Qxe5 {[%clk 0:00:20]} 39... a2 {[%clk 0:00:07.4]} 40. Ne8 {[%clk
0:00:18.3]} 40... Qb7 {[%clk 0:00:07.2]} 41. Nf6+ {[%clk 0:00:17.9]} 41... Kg6
{[%clk 0:00:08.2]} 42. Ng4 {[%clk 0:00:15.9]} 42... Qf7+ {[%clk 0:00:06.8]} 43.
Kg3 {[%clk 0:00:14.8]} 43... a1=Q {[%clk 0:00:08.7]} 44. Qe4+ {[%clk 0:00:15.8]}
44... Kg7 {[%clk 0:00:08.3]} 45. Qe5+ {[%clk 0:00:16.6]} 45... Kg6 {[%clk
0:00:09.2]} 46. Qe4+ {[%clk 0:00:17.1]} 46... Qf5 {[%clk 0:00:10.4]} 47. Ne5+
{[%clk 0:00:17.9]} 47... Kf6 {[%clk 0:00:11.7]} 48. Nd7+ {[%clk 0:00:16.9]}
48... Ke7 {[%clk 0:00:12.5]} 0-1

[Event "*** Biggest EVER Titled Tuesday"]
[Site "Chess.com"]
[Date "2018.04.17"]
[Round "8"]
[White "KNVB"]
[Black "GMMatamoros"]
[Result "1/2-1/2"]
[WhiteElo "2584"]
[BlackElo "2511"]
[TimeControl "180+2"]
[EndTime "14:53:20 PDT"]
[Termination "Game drawn - insufficient material"]

1. d4 {[%clk 0:03:01.9]} 1... e6 {[%clk 0:03:00]} 2. Bf4 {[%clk 0:03:02.9]} 2...
c5 {[%clk 0:02:59.6]} 3. e3 {[%clk 0:03:04.8]} 3... d5 {[%clk 0:02:57.8]} 4. Nf3
{[%clk 0:03:05.3]} 4... Bd6 {[%clk 0:02:55]} 5. Nbd2 {[%clk 0:03:02.5]} 5...
Bxf4 {[%clk 0:02:53.3]} 6. exf4 {[%clk 0:03:04.4]} 6... Ne7 {[%clk 0:02:53.2]}
7. dxc5 {[%clk 0:03:03.5]} 7... Qa5 {[%clk 0:02:50.2]} 8. Bd3 {[%clk 0:02:59.7]}
8... Qxc5 {[%clk 0:02:50.6]} 9. O-O {[%clk 0:03:01.6]} 9... b6 {[%clk
0:02:50.2]} 10. Nb3 {[%clk 0:03:01]} 10... Qc7 {[%clk 0:02:49.7]} 11. g3 {[%clk
0:02:59.6]} 11... Ba6 {[%clk 0:02:50]} 12. Rc1 {[%clk 0:02:53.5]} 12... Bxd3
{[%clk 0:02:37.6]} 13. cxd3 {[%clk 0:02:55.4]} 13... Qb7 {[%clk 0:02:36.1]} 14.
Nbd4 {[%clk 0:02:52.1]} 14... O-O {[%clk 0:02:36.2]} 15. Ne5 {[%clk 0:02:49.7]}
15... Nd7 {[%clk 0:02:30.1]} 16. Nb5 {[%clk 0:01:41]} 16... Nxe5 {[%clk
0:02:05.7]} 17. fxe5 {[%clk 0:01:40.3]} 17... Qd7 {[%clk 0:02:00.6]} 18. Qb3
{[%clk 0:01:16.8]} 18... Rfc8 {[%clk 0:01:36]} 19. Nd6 {[%clk 0:01:08.9]} 19...
Rc6 {[%clk 0:01:12.9]} 20. Rxc6 {[%clk 0:00:41.2]} 20... Nxc6 {[%clk 0:01:04]}
21. f4 {[%clk 0:00:37.6]} 21... f6 {[%clk 0:00:35.4]} 22. Qc3 {[%clk 0:00:26.5]}
22... fxe5 {[%clk 0:00:19.1]} 23. fxe5 {[%clk 0:00:27.6]} 23... d4 {[%clk
0:00:18.9]} 24. Qe1 {[%clk 0:00:28.6]} 24... Rf8 {[%clk 0:00:19.2]} 25. Rxf8+
{[%clk 0:00:26.7]} 25... Kxf8 {[%clk 0:00:21.1]} 26. Qe4 {[%clk 0:00:27]} 26...
Kg8 {[%clk 0:00:21.7]} 27. a3 {[%clk 0:00:19.2]} 27... h6 {[%clk 0:00:22.7]} 28.
b4 {[%clk 0:00:19.6]} 28... Ne7 {[%clk 0:00:23.3]} 29. Qxd4 {[%clk 0:00:18.9]}
29... Qa4 {[%clk 0:00:24.4]} 30. Qf2 {[%clk 0:00:15.8]} 30... Qd1+ {[%clk
0:00:21.8]} 31. Kg2 {[%clk 0:00:16.8]} 31... Qh5 {[%clk 0:00:22.5]} 32. d4
{[%clk 0:00:12.2]} 32... Kh7 {[%clk 0:00:17.7]} 33. Qf3 {[%clk 0:00:11.1]} 33...
Qg6 {[%clk 0:00:18.1]} 34. Qe4 {[%clk 0:00:11.6]} 34... Qxe4+ {[%clk 0:00:19.1]}
35. Nxe4 {[%clk 0:00:13.5]} 35... Nc6 {[%clk 0:00:20.6]} 36. Nd6 {[%clk
0:00:05.9]} 36... Nxd4 {[%clk 0:00:21.2]} 37. Nc8 {[%clk 0:00:07.3]} 37... Nc6
{[%clk 0:00:19.6]} 38. b5 {[%clk 0:00:08.5]} 38... Nxe5 {[%clk 0:00:20.7]} 39.
Nxa7 {[%clk 0:00:09.8]} 39... Nc4 {[%clk 0:00:20.1]} 40. a4 {[%clk 0:00:09.3]}
40... Kg6 {[%clk 0:00:20.8]} 41. Nc6 {[%clk 0:00:08.7]} 41... Kf5 {[%clk
0:00:21.9]} 42. Kf3 {[%clk 0:00:08.4]} 42... e5 {[%clk 0:00:21.3]} 43. g4+
{[%clk 0:00:05.6]} 43... Ke6 {[%clk 0:00:22.6]} 44. Ke4 {[%clk 0:00:05.4]} 44...
Nd6+ {[%clk 0:00:23.8]} 45. Kd3 {[%clk 0:00:06.5]} 45... Kd5 {[%clk 0:00:25.2]}
46. Ne7+ {[%clk 0:00:06.5]} 46... Kc5 {[%clk 0:00:25.4]} 47. h4 {[%clk
0:00:04.5]} 47... Kb4 {[%clk 0:00:22]} 48. Nd5+ {[%clk 0:00:05.1]} 48... Ka5
{[%clk 0:00:22]} 49. g5 {[%clk 0:00:03.8]} 49... hxg5 {[%clk 0:00:22.6]} 50.
hxg5 {[%clk 0:00:05.7]} 50... Nf7 {[%clk 0:00:23.5]} 51. Ke4 {[%clk 0:00:04.4]}
51... Nxg5+ {[%clk 0:00:24.2]} 52. Kxe5 {[%clk 0:00:05.8]} 52... Nf3+ {[%clk
0:00:25.4]} 53. Kf4 {[%clk 0:00:05.6]} 53... Nd4 {[%clk 0:00:26.3]} 54. Kg5
{[%clk 0:00:05.8]} 54... Ne6+ {[%clk 0:00:24.2]} 55. Kf5 {[%clk 0:00:05.4]}
55... Nc5 {[%clk 0:00:25.1]} 56. Kg6 {[%clk 0:00:06.1]} 56... Nxa4 {[%clk
0:00:26]} 57. Nxb6 {[%clk 0:00:06.8]} 57... Kxb5 {[%clk 0:00:27.9]} 58. Kxg7
{[%clk 0:00:08.6]} 58... Nxb6 {[%clk 0:00:28.7]} 1/2-1/2

[Event "*** Biggest EVER Titled Tuesday"]
[Site "Chess.com"]
[Date "2018.04.17"]
[Round "8"]
[White "ehrenfeld"]
[Black "tigra"]
[Result "0-1"]
[WhiteElo "2484"]
[BlackElo "2708"]
[TimeControl "180+2"]
[EndTime "14:53:22 PDT"]
[Termination "tigra won by resignation"]

1. e4 {[%clk 0:02:59.5]} 1... e6 {[%clk 0:02:59.5]} 2. d3 {[%clk 0:03:00]} 2...
d5 {[%clk 0:03:00.6]} 3. Qe2 {[%clk 0:03:01]} 3... Nc6 {[%clk 0:03:00.4]} 4. Nf3
{[%clk 0:03:00]} 4... e5 {[%clk 0:03:01.2]} 5. exd5 {[%clk 0:02:58.8]} 5... Qxd5
{[%clk 0:03:01.9]} 6. Nc3 {[%clk 0:02:59.6]} 6... Bb4 {[%clk 0:03:02.1]} 7. Bd2
{[%clk 0:03:00.6]} 7... Qa5 {[%clk 0:03:02.4]} 8. h3 {[%clk 0:02:33.9]} 8...
Nge7 {[%clk 0:03:00.9]} 9. g3 {[%clk 0:02:32.1]} 9... Be6 {[%clk 0:02:49]} 10.
Bg2 {[%clk 0:02:32.3]} 10... O-O-O {[%clk 0:02:49.9]} 11. O-O {[%clk 0:02:31.6]}
11... Nd4 {[%clk 0:02:43.5]} 12. Nxd4 {[%clk 0:02:30.4]} 12... exd4 {[%clk
0:02:45.4]} 13. Ne4 {[%clk 0:02:30.3]} 13... h6 {[%clk 0:02:32.7]} 14. c3 {[%clk
0:02:23.4]} 14... dxc3 {[%clk 0:02:33.7]} 15. bxc3 {[%clk 0:02:24.2]} 15... Ba3
{[%clk 0:02:35.1]} 16. Rab1 {[%clk 0:02:24]} 16... Qa6 {[%clk 0:02:11.8]} 17. c4
{[%clk 0:02:03.5]} 17... Nc6 {[%clk 0:02:09.7]} 18. Be3 {[%clk 0:02:01.9]} 18...
Nd4 {[%clk 0:02:08.7]} 19. Bxd4 {[%clk 0:01:55.6]} 19... Rxd4 {[%clk 0:02:10.6]}
20. Rb3 {[%clk 0:01:56.6]} 20... Rhd8 {[%clk 0:02:07.1]} 21. Rfb1 {[%clk
0:01:55.9]} 21... b6 {[%clk 0:02:06.8]} 22. Qf3 {[%clk 0:01:55.5]} 22... Be7
{[%clk 0:02:02.4]} 23. Nc3 {[%clk 0:01:28.4]} 23... Bc5 {[%clk 0:00:57.5]} 24.
Nb5 {[%clk 0:01:17.2]} 24... Kd7 {[%clk 0:00:33.2]} 25. Nxd4 {[%clk 0:00:55.4]}
25... Bxd4 {[%clk 0:00:33.8]} 26. Qc6+ {[%clk 0:00:55.4]} 26... Ke7 {[%clk
0:00:34.7]} 27. Qxc7+ {[%clk 0:00:56.3]} 27... Rd7 {[%clk 0:00:35.7]} 28. Qf4
{[%clk 0:00:53]} 28... Qxa2 {[%clk 0:00:34.7]} 29. Bd5 {[%clk 0:00:47.7]} 29...
Bxd5 {[%clk 0:00:26.3]} 30. cxd5 {[%clk 0:00:48]} 30... Rxd5 {[%clk 0:00:27.2]}
31. Rb5 {[%clk 0:00:41.1]} 31... Rxb5 {[%clk 0:00:11.7]} 32. Rxb5 {[%clk
0:00:41.2]} 32... Qa4 {[%clk 0:00:06.4]} 33. Rd5 {[%clk 0:00:38.4]} 33... Qa1+
{[%clk 0:00:04.3]} 34. Kg2 {[%clk 0:00:38]} 34... Bc5 {[%clk 0:00:04.6]} 35.
Qe5+ {[%clk 0:00:37.4]} 35... Qxe5 {[%clk 0:00:04.3]} 36. Rxe5+ {[%clk
0:00:38.4]} 36... Kd6 {[%clk 0:00:05.7]} 37. Re8 {[%clk 0:00:37.4]} 37... a5
{[%clk 0:00:06.4]} 38. Kf3 {[%clk 0:00:38.5]} 38... a4 {[%clk 0:00:07.6]} 39.
Ke4 {[%clk 0:00:38.2]} 39... Bxf2 {[%clk 0:00:08.4]} 40. g4 {[%clk 0:00:38.8]}
40... b5 {[%clk 0:00:09.1]} 41. Ra8 {[%clk 0:00:37.6]} 41... Kc5 {[%clk
0:00:09.4]} 42. d4+ {[%clk 0:00:37.5]} 42... Kb4 {[%clk 0:00:10.3]} 43. d5
{[%clk 0:00:38.3]} 43... Bg3 {[%clk 0:00:11.1]} 44. Ra6 {[%clk 0:00:36.7]} 44...
Kb3 {[%clk 0:00:11.3]} 45. d6 {[%clk 0:00:37.7]} 45... a3 {[%clk 0:00:12.3]} 46.
d7 {[%clk 0:00:38.3]} 46... Bh4 {[%clk 0:00:13.2]} 47. Kd5 {[%clk 0:00:29.4]}
47... b4 {[%clk 0:00:12.9]} 48. Kc5 {[%clk 0:00:28.7]} 48... a2 {[%clk
0:00:13.3]} 49. Kb5 {[%clk 0:00:26.3]} 49... Be7 {[%clk 0:00:13.3]} 50. Ra8
{[%clk 0:00:23.6]} 50... Kb2 {[%clk 0:00:13.6]} 51. d8=Q {[%clk 0:00:23.2]}
51... Bxd8 {[%clk 0:00:13.8]} 52. Kxb4 {[%clk 0:00:24.4]} 52... Be7+ {[%clk
0:00:12.7]} 53. Kc4 {[%clk 0:00:22.9]} 53... Ba3 {[%clk 0:00:13.4]} 0-1

[Event "*** Biggest EVER Titled Tuesday"]
[Site "Chess.com"]
[Date "2018.04.17"]
[Round "8"]
[White "Sam_ChessMood"]
[Black "Andreikka"]
[Result "1/2-1/2"]
[WhiteElo "2644"]
[BlackElo "2783"]
[TimeControl "180+2"]
[EndTime "14:53:30 PDT"]
[Termination "Game drawn by agreement"]

1. e4 {[%clk 0:03:01.9]} 1... c6 {[%clk 0:03:00.5]} 2. d4 {[%clk 0:03:01.1]}
2... d5 {[%clk 0:03:01]} 3. e5 {[%clk 0:03:02.4]} 3... Bf5 {[%clk 0:03:01.6]} 4.
h4 {[%clk 0:03:03.2]} 4... h5 {[%clk 0:03:01.3]} 5. c4 {[%clk 0:03:03.5]} 5...
e6 {[%clk 0:02:59]} 6. Nc3 {[%clk 0:03:04.7]} 6... Ne7 {[%clk 0:02:57.8]} 7.
Nge2 {[%clk 0:03:05.7]} 7... Nd7 {[%clk 0:02:44]} 8. Ng3 {[%clk 0:02:33]} 8...
Bg6 {[%clk 0:02:44.5]} 9. Bg5 {[%clk 0:02:25.6]} 9... Qb6 {[%clk 0:02:28.3]} 10.
Qd2 {[%clk 0:02:25]} 10... dxc4 {[%clk 0:02:24]} 11. Bxc4 {[%clk 0:01:57.3]}
11... Nf5 {[%clk 0:02:22.8]} 12. Nxf5 {[%clk 0:01:45.2]} 12... Bxf5 {[%clk
0:02:18.9]} 13. O-O {[%clk 0:01:45.4]} 13... Qc7 {[%clk 0:02:12.4]} 14. Qe3
{[%clk 0:01:42.9]} 14... Nb6 {[%clk 0:02:07.7]} 15. Bb3 {[%clk 0:01:42.5]} 15...
Be7 {[%clk 0:02:06.3]} 16. a4 {[%clk 0:01:37.8]} 16... a5 {[%clk 0:02:03.6]} 17.
Rac1 {[%clk 0:01:38.8]} 17... Qd7 {[%clk 0:01:58.6]} 18. Rfd1 {[%clk 0:01:16.4]}
18... O-O {[%clk 0:01:56.9]} 19. Qg3 {[%clk 0:01:15.7]} 19... Bg6 {[%clk
0:01:47.9]} 20. Ne2 {[%clk 0:01:11.9]} 20... Bxg5 {[%clk 0:01:22.8]} 21. Qxg5
{[%clk 0:01:12.4]} 21... Qd8 {[%clk 0:01:24.3]} 22. Qg3 {[%clk 0:01:12.8]} 22...
Nd5 {[%clk 0:01:17.2]} 23. Nf4 {[%clk 0:00:43]} 23... Nxf4 {[%clk 0:01:05.8]}
24. Qxf4 {[%clk 0:00:44.9]} 24... Qb6 {[%clk 0:01:07.4]} 25. Rc3 {[%clk
0:00:45.2]} 25... Rad8 {[%clk 0:01:09]} 26. g4 {[%clk 0:00:42.1]} 26... hxg4
{[%clk 0:01:06.3]} 27. Qxg4 {[%clk 0:00:42.5]} 27... c5 {[%clk 0:00:51.1]} 28.
h5 {[%clk 0:00:35.5]} 28... Bf5 {[%clk 0:00:39.6]} 29. Qg5 {[%clk 0:00:36.8]}
29... f6 {[%clk 0:00:39.1]} 30. Qxf5 {[%clk 0:00:18.4]} 30... Qxb3 {[%clk
0:00:39.6]} 31. Qg4 {[%clk 0:00:16.3]} 31... f5 {[%clk 0:00:33.7]} 32. Qxg7+
{[%clk 0:00:05.1]} 32... Kxg7 {[%clk 0:00:34.3]} 33. Rxb3 {[%clk 0:00:07]} 33...
cxd4 {[%clk 0:00:35.9]} 34. Rxb7+ {[%clk 0:00:07.3]} 34... Kh6 {[%clk 0:00:37]}
35. Kg2 {[%clk 0:00:08.7]} 35... Rg8+ {[%clk 0:00:21.4]} 36. Kf3 {[%clk
0:00:09.9]} 36... Rg4 {[%clk 0:00:22.9]} 37. Re7 {[%clk 0:00:09.5]} 37... Kxh5
{[%clk 0:00:23.2]} 38. Rxe6 {[%clk 0:00:09.2]} 38... d3 {[%clk 0:00:24.7]} 39.
Rd6 {[%clk 0:00:09.4]} 39... Re8 {[%clk 0:00:24.9]} 40. e6 {[%clk 0:00:09.9]}
40... Rxa4 {[%clk 0:00:24.8]} 41. R1xd3 {[%clk 0:00:10.7]} 41... Kg5 {[%clk
0:00:26.3]} 42. Rb6 {[%clk 0:00:11]} 42... Kf6 {[%clk 0:00:23.6]} 43. Re3 {[%clk
0:00:11.1]} 43... Rb4 {[%clk 0:00:22.7]} 44. Rxb4 {[%clk 0:00:11.3]} 44... axb4
{[%clk 0:00:24]} 45. Rb3 {[%clk 0:00:12.6]} 45... Rb8 {[%clk 0:00:25.2]} 46. Re3
{[%clk 0:00:13.4]} 46... Re8 {[%clk 0:00:25.6]} 47. Kf4 {[%clk 0:00:12.6]} 47...
Rxe6 {[%clk 0:00:19.8]} 48. Rxe6+ {[%clk 0:00:13.8]} 48... Kxe6 {[%clk
0:00:21.4]} 49. Kg5 {[%clk 0:00:15.2]} 49... Ke5 {[%clk 0:00:22.2]} 50. f4+
{[%clk 0:00:15.4]} 50... Ke4 {[%clk 0:00:22.9]} 51. b3 {[%clk 0:00:16.6]} 51...
Kd3 {[%clk 0:00:23.5]} 52. Kxf5 {[%clk 0:00:18]} 52... Kc3 {[%clk 0:00:25.4]}
53. Ke5 {[%clk 0:00:14.4]} 53... Kxb3 {[%clk 0:00:26.7]} 54. f5 {[%clk
0:00:15.4]} 54... Kc2 {[%clk 0:00:28.3]} 55. f6 {[%clk 0:00:16]} 55... b3 {[%clk
0:00:29.9]} 56. f7 {[%clk 0:00:17.4]} 56... b2 {[%clk 0:00:31.5]} 57. f8=Q
{[%clk 0:00:18.4]} 57... b1=Q {[%clk 0:00:33.1]} 58. Qf5+ {[%clk 0:00:19.7]}
1/2-1/2

[Event "*** Biggest EVER Titled Tuesday"]
[Site "Chess.com"]
[Date "2018.04.17"]
[Round "8"]
[White "Denis0027"]
[Black "chessking2151"]
[Result "0-1"]
[WhiteElo "2255"]
[BlackElo "2368"]
[TimeControl "180+2"]
[EndTime "14:53:31 PDT"]
[Termination "chessking2151 won by resignation"]

1. d4 {[%clk 0:02:55.8]} 1... Nf6 {[%clk 0:03:00.6]} 2. Nc3 {[%clk 0:02:56.4]}
2... d5 {[%clk 0:03:00.9]} 3. Bf4 {[%clk 0:02:56.2]} 3... c6 {[%clk 0:02:59.4]}
4. e3 {[%clk 0:02:54.8]} 4... Bf5 {[%clk 0:02:59.9]} 5. Be2 {[%clk 0:02:52.1]}
5... e6 {[%clk 0:03:00.5]} 6. Nf3 {[%clk 0:02:52.1]} 6... h6 {[%clk 0:02:59.7]}
7. Ne5 {[%clk 0:02:52.9]} 7... Nbd7 {[%clk 0:02:58.8]} 8. g4 {[%clk 0:02:53.6]}
8... Bh7 {[%clk 0:02:59.4]} 9. h4 {[%clk 0:02:54.6]} 9... Nxe5 {[%clk
0:02:59.6]} 10. dxe5 {[%clk 0:02:52.1]} 10... Nd7 {[%clk 0:02:58.4]} 11. g5
{[%clk 0:02:52.3]} 11... Qa5 {[%clk 0:02:53.2]} 12. gxh6 {[%clk 0:02:49.6]}
12... gxh6 {[%clk 0:02:52]} 13. Qd2 {[%clk 0:02:47.8]} 13... Bb4 {[%clk
0:02:52]} 14. Bh5 {[%clk 0:02:46.5]} 14... Nc5 {[%clk 0:02:43.2]} 15. f3 {[%clk
0:02:43.2]} 15... Na4 {[%clk 0:02:37.3]} 16. a3 {[%clk 0:02:22.4]} 16... Nxb2
{[%clk 0:02:22.3]} 17. axb4 {[%clk 0:01:48.1]} 17... Qxa1+ {[%clk 0:02:21]} 18.
Nd1 {[%clk 0:01:49.3]} 18... Nxd1 {[%clk 0:02:17.5]} 19. O-O {[%clk 0:01:28.4]}
19... Rg8+ {[%clk 0:02:14.2]} 20. Kh2 {[%clk 0:01:26.6]} 20... Qc3 {[%clk
0:02:14.7]} 21. Rxd1 {[%clk 0:01:27.1]} 21... Qxd2+ {[%clk 0:02:09.6]} 22. Rxd2
{[%clk 0:01:29]} 22... Bg6 {[%clk 0:02:10.9]} 23. Bg4 {[%clk 0:01:28.5]} 23...
h5 {[%clk 0:02:11.3]} 24. Bh3 {[%clk 0:01:29.4]} 24... Bf5 {[%clk 0:02:12.8]}
25. Bf1 {[%clk 0:01:29.9]} 25... Kd7 {[%clk 0:02:08.5]} 26. Bg5 {[%clk
0:01:30.5]} 26... Kc7 {[%clk 0:02:07]} 27. Kg3 {[%clk 0:01:22.3]} 27... b5
{[%clk 0:02:00.8]} 28. Kf4 {[%clk 0:01:22.9]} 28... a5 {[%clk 0:01:55.2]} 29. e4
{[%clk 0:01:24]} 29... Bg6 {[%clk 0:01:54.3]} 30. bxa5 {[%clk 0:01:24]} 30...
Rxa5 {[%clk 0:01:54.4]} 31. Be7 {[%clk 0:01:21.7]} 31... Ra4 {[%clk 0:01:55]}
32. Bd3 {[%clk 0:01:18.7]} 32... dxe4 {[%clk 0:01:54.3]} 33. fxe4 {[%clk
0:01:18]} 33... Kb7 {[%clk 0:01:53.1]} 34. c4 {[%clk 0:00:56.1]} 34... bxc4
{[%clk 0:01:43.5]} 35. Rb2+ {[%clk 0:00:56.9]} 35... Kc8 {[%clk 0:01:27.8]} 36.
Bc2 {[%clk 0:00:57.8]} 36... c3 {[%clk 0:01:22.8]} 37. Rb3 {[%clk 0:00:28.8]}
37... Ra2 {[%clk 0:01:10.8]} 38. Rxc3 {[%clk 0:00:28.6]} 38... Kd7 {[%clk
0:01:10.6]} 39. Bd6 {[%clk 0:00:22.4]} 39... Rga8 {[%clk 0:01:07.8]} 40. Bd3
{[%clk 0:00:19.1]} 40... Rf2+ {[%clk 0:00:55.1]} 41. Ke3 {[%clk 0:00:18.6]}
41... Rh2 {[%clk 0:00:54.9]} 42. Rb3 {[%clk 0:00:19.6]} 42... Ra7 {[%clk
0:00:35.3]} 43. Kd4 {[%clk 0:00:17.8]} 43... Rxh4 {[%clk 0:00:31.1]} 44. Kc5
{[%clk 0:00:14.4]} 44... Bxe4 {[%clk 0:00:30.8]} 45. Kb6 {[%clk 0:00:14.2]}
45... Ra8 {[%clk 0:00:26.2]} 46. Ba6 {[%clk 0:00:15.1]} 46... Bd5 {[%clk
0:00:23]} 47. Rg3 {[%clk 0:00:14.3]} 47... Rg4 {[%clk 0:00:20.3]} 48. Rh3 {[%clk
0:00:12.7]} 48... h4 {[%clk 0:00:20.6]} 49. Rh2 {[%clk 0:00:14.1]} 49... Bc4
{[%clk 0:00:18.3]} 50. Bb7 {[%clk 0:00:14.2]} 50... Ra2 {[%clk 0:00:17.9]} 51.
Bxc6+ {[%clk 0:00:15]} 51... Kc8 {[%clk 0:00:18.7]} 52. Rf2 {[%clk 0:00:15.2]}
52... Rxf2 {[%clk 0:00:17.7]} 53. Bb7+ {[%clk 0:00:14.4]} 53... Kd8 {[%clk
0:00:17]} 54. Bc7+ {[%clk 0:00:14.1]} 54... Ke8 {[%clk 0:00:18.1]} 55. Bd6
{[%clk 0:00:14]} 55... Rb2+ {[%clk 0:00:18.3]} 56. Kc7 {[%clk 0:00:14.1]} 56...
Rxb7+ {[%clk 0:00:20.2]} 57. Kxb7 {[%clk 0:00:15.2]} 57... Bd5+ {[%clk
0:00:22.1]} 58. Kc7 {[%clk 0:00:16.3]} 58... Rc4+ {[%clk 0:00:22.5]} 59. Kb6
{[%clk 0:00:17.5]} 59... Kd7 {[%clk 0:00:23.8]} 60. Kb5 {[%clk 0:00:18.4]} 60...
Rc6 {[%clk 0:00:25]} 61. Kb4 {[%clk 0:00:19.4]} 61... Rxd6 {[%clk 0:00:26.5]}
62. exd6 {[%clk 0:00:20.4]} 62... Kxd6 {[%clk 0:00:27.6]} 0-1